fUSD/lending_fUSD_20260612
["ID","MTS","AMOUNT","RATE_DAILY","PERIOD"]
[424909507,1781266250000,-2250.0,0.00015,2]
[424909480,1781266250000,-500.0,0.00015,2]
[424909504,1781266250000,-3000.0,0.00015,2]
[424909482,1781266250000,-500.0,0.00015,2]
[424909484,1781266250000,-500.0,0.00015,2]
[424909491,1781266250000,-500.0,0.00015,2]
[424909481,1781266250000,-500.0,0.00015,2]
[424909483,1781266250000,-500.0,0.00015,2]
[424909488,1781266250000,-500.0,0.00015,2]
[424909490,1781266250000,-500.0,0.00015,2]
[424909489,1781266250000,-500.0,0.00015,2]
[424909487,1781266250000,-500.0,0.00015,2]
[424909486,1781266250000,-500.0,0.00015,2]
[424909485,1781266250000,-500.0,0.00015,2]
[424909493,1781266250000,-500.0,0.00015,2]
[424909492,1781266250000,-500.0,0.00015,2]
[424909497,1781266250000,-151.0,0.00015,2]
[424909495,1781266250000,-151.0,0.00015,2]
[424909499,1781266250000,-151.0,0.00015,2]
[424909498,1781266250000,-151.0,0.00015,2]
[424909496,1781266250000,-151.0,0.00015,2]
[424909494,1781266250000,-391.926367,0.00015,2]
[424909500,1781266250000,-3000.0,0.00015,2]
[424909501,1781266250000,-3000.0,0.00015,2]
[424909503,1781266250000,-3000.0,0.00015,2]
[424909502,1781266250000,-151.0,0.00015,2]
[424909506,1781266250000,-3000.0,0.00015,2]
[424909508,1781266250000,-3000.0,0.00015,2]
[424909505,1781266250000,-600.0,0.00015,2]
[424909532,1781266250000,-2398.26,0.00015009,2]
[424909531,1781266250000,-300.51,0.00015004,2]
[424909541,1781266250000,-900.0,0.00015068,2]
[424909567,1781266250000,-10000.0,0.00015479,2]
[424909564,1781266250000,-220.958687,0.00015438,2]
[424909566,1781266250000,-262.15025503,0.00015467,2]
[424909569,1781266250000,-747.156864,0.000155,2]
[424909571,1781266250000,-226.936993,0.00015515,2]
[424909575,1781266250000,-10000.0,0.0001571,2]
[424909572,1781266250000,-747.156864,0.000156,2]
[424909574,1781266250000,-1613.0535,0.00015697,2]
[424909573,1781266250000,-5067.09566855,0.000156,2]
[424909577,1781266250000,-163.0,0.00015772,2]
[424909576,1781266250000,-300.0,0.00015728,2]
[424909578,1781266250000,-151.0,0.00015772,2]
[424909580,1781266250000,-5067.09566855,0.000158,2]
[424909579,1781266250000,-2843.77201288,0.000158,5]
[424909583,1781266250000,-350.0,0.00015932,2]
[424909586,1781266250000,-160.0,0.00016,8]
[424909584,1781266250000,-350.0,0.00015933,2]
[424909591,1781266250000,-5067.09566855,0.000161,2]
[424909582,1781266250000,-5067.09566855,0.000159,2]
[424909587,1781266250000,-779.62905849,0.00016,2]
[424909585,1781266250000,-159.0,0.00016,2]
[424909588,1781266250000,-6000.0,0.00016,2]
[424909589,1781266250000,-300.0,0.00016,2]
[424909590,1781266250000,-500.0,0.00016,2]
[424909536,1781266250000,-10000.0,0.00015039,2]
[424909563,1781266250000,-171.441332,0.00015438,2]
[424909562,1781266250000,-350.0,0.00015348,2]
[424909581,1781266250000,-2276.54541104,0.00015807,2]
[424909570,1781266250000,-5067.09566855,0.000155,2]
[424909568,1781266250000,-350.0,0.00015495,2]
[424909539,1781266250000,-300.51,0.00015066,2]
[424909547,1781266250000,-1555.5,0.00015149,2]
[424909543,1781266250000,-992.58433,0.00015068,2]
[424909537,1781266250000,-300.51,0.00015046,2]
[424909542,1781266250000,-992.58433,0.00015068,2]
[424909538,1781266250000,-10000.0,0.00015058,2]
[424909546,1781266250000,-164.6,0.0001508,2]
[424909540,1781266250000,-150.0,0.00015068,2]
[424909545,1781266250000,-992.58433,0.00015068,2]
[424909549,1781266250000,-332.09,0.00015161,2]
[424909557,1781266250000,-327.49,0.000153,2]
[424909558,1781266250000,-1517.64,0.000153,2]
[424909544,1781266250000,-992.58433,0.00015068,2]
[424909560,1781266250000,-5067.09566855,0.000153,2]
[424909551,1781266250000,-5067.09566855,0.000152,2]
[424909548,1781266250000,-10000.0,0.00015152,2]
[424909553,1781266250000,-1564.17780552,0.00015263,2]
[424909556,1781266250000,-319.83,0.000153,2]
[424909554,1781266250000,-1252.0,0.00015285,2]
[424909555,1781266250000,-420.53,0.000153,2]
[424909552,1781266250000,-1333.0,0.000152,2]
[424909550,1781266250000,-747.156864,0.000152,2]
[424909559,1781266250000,-747.156864,0.000153,2]
[424909561,1781266250000,-178.22302,0.00015313,2]
[424909565,1781266250000,-208.073137,0.00015438,2]
[424909630,1781266251000,-151.0,0.00016438,2]
[424909623,1781266251000,-151.0,0.00016438,2]
[424909636,1781266251000,-151.0,0.00016438,2]
[424909631,1781266251000,-151.0,0.00016438,2]
[424909628,1781266251000,-151.0,0.00016438,2]
[424909620,1781266251000,-151.0,0.00016438,2]
[424909624,1781266251000,-151.0,0.00016438,2]
[424909619,1781266251000,-151.0,0.00016438,2]
[424909617,1781266251000,-900.0,0.00016438,2]
[424909622,1781266251000,-151.0,0.00016438,2]
[424909635,1781266251000,-151.0,0.00016438,2]
[424909626,1781266251000,-151.0,0.00016438,2]
[424909637,1781266251000,-151.0,0.00016438,2]
[424909640,1781266251000,-151.0,0.00016438,2]
[424909633,1781266251000,-151.0,0.00016438,2]
[424909634,1781266251000,-151.0,0.00016438,2]
[424909632,1781266251000,-151.0,0.00016438,2]
[424909638,1781266251000,-151.0,0.00016438,2]
[424909648,1781266251000,-500.0,0.00016444,2]
[424909649,1781266251000,-300.0,0.00016473,2]
[424909639,1781266251000,-273.641047,0.00016438,2]
[424909643,1781266251000,-152.0,0.00016438,2]
[424909641,1781266251000,-152.0,0.00016438,2]
[424909642,1781266251000,-152.0,0.00016438,2]
[424909644,1781266251000,-1191.476515,0.00016438,2]
[424909629,1781266251000,-151.0,0.00016438,2]
[424909621,1781266251000,-151.0,0.00016438,2]
[424909592,1781266251000,-350.0,0.00016114,2]
[424909618,1781266251000,-151.0,0.00016438,2]
[424909593,1781266251000,-350.0,0.00016126,2]
[424909595,1781266251000,-300.0,0.00016199,2]
[424909605,1781266251000,-583.54,0.000164,2]
[424909594,1781266251000,-300.0,0.00016199,2]
[424909598,1781266251000,-298.04,0.000162,2]
[424909596,1781266251000,-12835.84,0.000162,2]
[424909597,1781266251000,-25758.82,0.000162,2]
[424909600,1781266251000,-1672.7364795,0.00016245,2]
[424909599,1781266251000,-5067.09566855,0.000162,2]
[424909603,1781266251000,-231.94161603,0.0001638,2]
[424909601,1781266251000,-350.0,0.00016292,2]
[424909602,1781266251000,-200.0,0.0001634,2]
[424909604,1781266251000,-5067.09566855,0.000164,2]
[424909608,1781266251000,-207.892926,0.00016438,2]
[424909606,1781266251000,-1566.8,0.00016438,2]
[424909609,1781266251000,-207.0,0.00016438,2]
[424909611,1781266251000,-200.59729295,0.00016438,2]
[424909616,1781266251000,-152.0,0.00016438,2]
[424909613,1781266251000,-152.0,0.00016438,2]
[424909610,1781266251000,-152.0,0.00016438,2]
[424909614,1781266251000,-152.0,0.00016438,2]
[424909615,1781266251000,-152.0,0.00016438,2]
[424909612,1781266251000,-152.0,0.00016438,2]
[424909607,1781266251000,-537.33,0.00016438,2]
[424909627,1781266251000,-151.0,0.00016438,2]
[424909625,1781266251000,-151.0,0.00016438,2]
[424909646,1781266251000,-1191.476515,0.00016438,2]
[424909658,1781266251000,-1564.17780552,0.00016808,2]
[424909647,1781266251000,-1191.476515,0.00016438,2]
[424909683,1781266251000,-1798.80895522,0.00017341,2]
[424909681,1781266251000,-300.0,0.00017287,7]
[424909684,1781266251000,-151.0,0.00017586,2]
[424909679,1781266251000,-450.0,0.00017272,7]
[424909678,1781266251000,-1500.0,0.00017272,2]
[424909687,1781266251000,-287.06193287,0.00017588,2]
[424909697,1781266251000,-150.055,0.00017589,2]
[424909688,1781266251000,-150.0,0.00017589,2]
[424909686,1781266251000,-500.0,0.00017588,2]
[424909692,1781266251000,-150.0,0.00017589,2]
[424909690,1781266251000,-150.0,0.00017589,2]
[424909696,1781266251000,-150.0,0.00017589,2]
[424909695,1781266251000,-150.15,0.00017589,2]
[424909689,1781266251000,-150.0,0.00017589,2]
[424909691,1781266251000,-150.0,0.00017589,2]
[424909693,1781266251000,-150.115,0.00017589,2]
[424909694,1781266251000,-150.0,0.00017589,2]
[424909698,1781266251000,-150.0,0.00017589,2]
[424909700,1781266251000,-150.0,0.00017589,2]
[424909702,1781266251000,-1358.0,0.00017589,2]
[424909701,1781266251000,-150.118,0.00017589,2]
[424909703,1781266251000,-3556.0,0.00017589,2]
[424909704,1781266251000,-151.0,0.00017624,2]
[424909699,1781266251000,-150.0,0.00017589,2]
[424909645,1781266251000,-1191.476515,0.00016438,2]
[424909680,1781266251000,-1050.0,0.00017287,2]
[424909682,1781266251000,-152.0,0.00017324,2]
[424909705,1781266251000,-794.64861957,0.000177,2]
[424909676,1781266251000,-152.0,0.00017161,2]
[424909651,1781266251000,-307.97603717,0.00016478,2]
[424909650,1781266251000,-5693.2,0.00016474,2]
[424909654,1781266251000,-168.44,0.00016712,2]
[424909653,1781266251000,-242.925618,0.00016515,7]
[424909659,1781266251000,-521.2,0.00016931,2]
[424909660,1781266251000,-1164.85634935,0.00017,2]
[424909652,1781266251000,-1000.0,0.000165,2]
[424909657,1781266251000,-1734.62772924,0.00016793,2]
[424909656,1781266251000,-2129.0,0.00016773,2]
[424909655,1781266251000,-216.88,0.00016767,2]
[424909663,1781266251000,-402.0,0.0001709,2]
[424909670,1781266251000,-152.0,0.00017161,2]
[424909661,1781266251000,-1275.0,0.00017044,2]
[424909664,1781266251000,-232.776821,0.00017158,7]
[424909674,1781266251000,-152.0,0.00017161,2]
[424909662,1781266251000,-2056.87909282,0.00017074,2]
[424909685,1781266251000,-361.76113529,0.00017588,2]
[424909675,1781266251000,-152.0,0.00017161,2]
[424909669,1781266251000,-152.0,0.00017161,2]
[424909668,1781266251000,-152.0,0.00017161,2]
[424909677,1781266251000,-152.0,0.00017161,2]
[424909672,1781266251000,-151.0,0.00017161,2]
[424909671,1781266251000,-151.0,0.00017161,2]
[424909665,1781266251000,-163.0,0.00017161,2]
[424909667,1781266251000,-152.0,0.00017161,2]
[424909666,1781266251000,-152.0,0.00017161,2]
[424909673,1781266251000,-151.0,0.00017161,2]
[424909745,1781266252000,-210.0,0.00019,2]
[424909739,1781266252000,-523.0467315,0.00018999,2]
[424909742,1781266252000,-232.0,0.00019,2]
[424909737,1781266252000,-200.0,0.00018998,3]
[424909740,1781266252000,-5247.19895365,0.00019,2]
[424909741,1781266252000,-5295.94194067,0.00019,2]
[424909736,1781266252000,-2005.9555727,0.00018985,2]
[424909743,1781266252000,-490.0,0.00019,2]
[424909746,1781266252000,-9935.98567777,0.000191,2]
[424909738,1781266252000,-500.0,0.00018999,2]
[424909734,1781266252000,-1298.69930542,0.000189,2]
[424909758,1781266252000,-300.0,0.00019338,2]
[424909747,1781266252000,-1298.69930542,0.000191,2]
[424909752,1781266252000,-238.80108936,0.00019178,2]
[424909748,1781266252000,-172.40711094,0.00019178,2]
[424909751,1781266252000,-265.33454374,0.00019178,2]
[424909749,1781266252000,-163.7867554,0.00019178,2]
[424909753,1781266252000,-255.05423553,0.00019178,2]
[424909750,1781266252000,-294.81615971,0.00019178,2]
[424909754,1781266252000,-229.54881198,0.00019178,2]
[424909756,1781266252000,-9935.98567777,0.000193,2]
[424909755,1781266252000,-500.0,0.00019248,2]
[424909759,1781266252000,-22422.43006691,0.00019339,7]
[424909735,1781266252000,-504.0,0.00018954,2]
[424909744,1781266252000,-1211.0,0.00019,2]
[424909732,1781266252000,-1298.69930542,0.000187,2]
[424909718,1781266252000,-1298.69930542,0.000182,2]
[424909731,1781266252000,-9935.98567777,0.000187,2]
[424909757,1781266252000,-1298.69930542,0.000193,2]
[424909708,1781266252000,-300.0,0.00017999,2]
[424909706,1781266252000,-1865.36488656,0.00017889,2]
[424909707,1781266252000,-1241.86714978,0.0001789,2]
[424909720,1781266252000,-1564.17780552,0.00018354,2]
[424909710,1781266252000,-1209.8848882,0.00018,2]
[424909712,1781266252000,-1298.69930542,0.00018,2]
[424909714,1781266252000,-504.0,0.00018,2]
[424909711,1781266252000,-9935.98567777,0.00018,2]
[424909713,1781266252000,-350.0,0.00018,2]
[424909709,1781266252000,-103191.67677667,0.00018,2]
[424909733,1781266252000,-9935.98567777,0.000189,2]
[424909719,1781266252000,-272.005915,0.00018291,7]
[424909715,1781266252000,-1805.48015254,0.000181,2]
[424909721,1781266252000,-2155.17,0.00018356,2]
[424909723,1781266252000,-9935.98567777,0.000184,2]
[424909722,1781266252000,-186.0,0.00018399,2]
[424909724,1781266252000,-583.54,0.000184,2]
[424909725,1781266252000,-1298.69930542,0.000184,2]
[424909726,1781266252000,-1566.8,0.0001841,2]
[424909727,1781266252000,-1934.38338736,0.00018437,2]
[424909729,1781266252000,-1298.69930542,0.000185,2]
[424909728,1781266252000,-9935.98567777,0.000185,2]
[424909730,1781266252000,-247.89168603,0.000185,2]
[424909717,1781266252000,-9935.98567777,0.000182,2]
[424909760,1781266252000,-470.0,0.00019452,2]
[424909716,1781266252000,-247.350993,0.00018122,7]
[424909765,1781266252000,-9935.98567777,0.000195,2]
[424909789,1781266252000,-209.40437684,0.00019533,2]
[424909791,1781266252000,-693.39197629,0.00019533,2]
[424909792,1781266252000,-152.0,0.00019533,2]
[424909793,1781266252000,-151.0,0.00019533,2]
[424909794,1781266252000,-1328.27659266,0.00019533,2]
[424909798,1781266252000,-151.0,0.00019533,2]
[424909804,1781266252000,-1377.42282658,0.00019533,2]
[424909802,1781266252000,-151.0,0.00019533,2]
[424909805,1781266252000,-721.12765534,0.00019533,2]
[424909801,1781266252000,-2080.17592889,0.00019533,2]
[424909815,1781266252000,-151.0,0.00019533,2]
[424909799,1781266252000,-152.0,0.00019533,2]
[424909797,1781266252000,-151.0,0.00019533,2]
[424909808,1781266252000,-151.0,0.00019533,2]
[424909803,1781266252000,-151.0,0.00019533,2]
[424909800,1781266252000,-500.0,0.00019533,2]
[424909806,1781266252000,-500.0,0.00019533,2]
[424909807,1781266252000,-160.0,0.00019533,2]
[424909810,1781266252000,-500.0,0.00019533,2]
[424909816,1781266252000,-500.0,0.00019533,2]
[424909809,1781266252000,-152.0,0.00019533,2]
[424909812,1781266252000,-151.0,0.00019533,2]
[424909811,1781266252000,-209.40437684,0.00019533,2]
[424909813,1781266252000,-200.0,0.00019533,2]
[424909764,1781266252000,-13548.723146,0.000195,2]
[424909790,1781266252000,-151.0,0.00019533,2]
[424909788,1781266252000,-152.0,0.00019533,2]
[424909814,1781266252000,-1428.38747117,0.00019533,2]
[424909787,1781266252000,-151.0,0.00019533,2]
[424909786,1781266252000,-1280.88388877,0.00019533,2]
[424909762,1781266252000,-2072.0,0.00019452,2]
[424909763,1781266252000,-300.0,0.00019499,2]
[424909761,1781266252000,-470.0,0.00019452,2]
[424909768,1781266252000,-1030.0,0.00019533,2]
[424909767,1781266252000,-418.9195024,0.00019533,2]
[424909773,1781266252000,-151.0,0.00019533,2]
[424909769,1781266252000,-200.0,0.00019533,2]
[424909770,1781266252000,-1068.11,0.00019533,2]
[424909774,1781266252000,-1191.11104074,0.00019533,2]
[424909775,1781266252000,-209.40437684,0.00019533,2]
[424909771,1781266252000,-1107.63007,0.00019533,2]
[424909766,1781266252000,-1298.69930542,0.000195,2]
[424909777,1781266252000,-578.20924308,0.00019533,2]
[424909772,1781266252000,-1148.61238259,0.00019533,2]
[424909795,1781266252000,-209.40437684,0.00019533,2]
[424909782,1781266252000,-542.75050623,0.00019533,2]
[424909785,1781266252000,-151.0,0.00019533,2]
[424909796,1781266252000,-151.0,0.00019533,2]
[424909783,1781266252000,-152.0,0.00019533,2]
[424909784,1781266252000,-174.61919141,0.00019533,2]
[424909779,1781266252000,-151.0,0.00019533,2]
[424909781,1781266252000,-4853.74383408,0.00019533,2]
[424909780,1781266252000,-1235.18214925,0.00019533,2]
[424909776,1781266252000,-151.0,0.00019533,2]
[424909778,1781266252000,-172.19907055,0.00019533,2]
[424909819,1781266253000,-57.60325384,0.00019533,2]
[424909818,1781266253000,-442.39674616,0.00019533,2]
[424909817,1781266253000,-152.0,0.00019533,2]
[424909820,1781266253000,-151.0,0.00019533,2]
[424909823,1781266253000,-151.0,0.00019533,2]
[424909822,1781266253000,-1176.44991797,0.00019533,2]
[424909824,1781266253000,-17.04008203,0.00019533,2]
[424909825,1781266253000,-279.33883483,0.00019533,2]
[424909821,1781266253000,-304.78788963,0.00019533,2]
[424909826,1781266254000,-203.62108314,0.00019533,2]
[424909827,1781266254000,-152.0,0.00019533,2]
[424909828,1781266254000,-500.0,0.00019533,2]
[424909829,1781266254000,-5423.86611987,0.00019533,2]
[424909830,1781266254000,-191.683534,0.00014349,2]
[424909833,1781266254000,-151.0,0.00019533,2]
[424909832,1781266254000,-3385.84761954,0.00019533,2]
[424909837,1781266254000,-353.9738717,0.00019533,2]
[424909838,1781266254000,-146.0261283,0.00019533,2]
[424909835,1781266254000,-151.0,0.00019533,2]
[424909836,1781266254000,-152.0,0.00019533,2]
[424909831,1781266254000,-742.45412606,0.00019533,2]
[424909839,1781266254000,-500.0,0.00019533,2]
[424909842,1781266254000,-968.38065445,0.00019533,2]
[424909841,1781266254000,-349.54527666,0.00019533,2]
[424909840,1781266254000,-151.0,0.00019533,2]
[424909834,1781266254000,-1536.04360648,0.00019533,2]
[424909867,1781266255000,-151.0,0.00019533,2]
[424909856,1781266255000,-151.0,0.00019533,2]
[424909858,1781266255000,-151.0,0.00019533,2]
[424909860,1781266255000,-500.0,0.00019533,2]
[424909862,1781266255000,-1776.30922209,0.00019533,2]
[424909859,1781266255000,-500.0,0.00019533,2]
[424909861,1781266255000,-151.0,0.00019533,2]
[424909857,1781266255000,-1712.93078311,0.00019533,2]
[424909865,1781266255000,-152.0,0.00019533,2]
[424909866,1781266255000,-500.0,0.00019533,2]
[424909863,1781266255000,-151.0,0.00019533,2]
[424909854,1781266255000,-500.0,0.00019533,2]
[424909852,1781266255000,-151.0,0.00019533,2]
[424909855,1781266255000,-500.0,0.00019533,2]
[424909853,1781266255000,-152.0,0.00019533,2]
[424909851,1781266255000,-1651.81367706,0.00019533,2]
[424909850,1781266255000,-151.0,0.00019533,2]
[424909849,1781266255000,-500.0,0.00019533,2]
[424909848,1781266255000,-446.01491974,0.00019533,2]
[424909847,1781266255000,-53.98508026,0.00019533,2]
[424909846,1781266255000,-152.0,0.00019533,2]
[424909845,1781266255000,-84.01491974,0.00019533,2]
[424909844,1781266255000,-66.98508026,0.00019533,2]
[424909843,1781266255000,-274.95128881,0.00019533,2]
[424909864,1781266255000,-500.0,0.00019533,2]
[424909868,1781266255000,-946.5284868,0.00019533,2]
[424909875,1781266255000,-9223.62990277,0.000149,2]
[424909870,1781266255000,-5147.07059912,0.00013376,2]
[424909869,1781266255000,-2129.40940088,0.00013376,2]
[424909896,1781266255000,-151.0,0.00019533,2]
[424909894,1781266255000,-151.0,0.00019533,2]
[424909895,1781266255000,-151.0,0.00019533,2]
[424909893,1781266255000,-2054.15682156,0.00019533,2]
[424909892,1781266255000,-151.0,0.00019533,2]
[424909890,1781266255000,-500.0,0.00019533,2]
[424909885,1781266255000,-500.0,0.00019533,2]
[424909889,1781266255000,-151.0,0.00019533,2]
[424909886,1781266255000,-500.0,0.00019533,2]
[424909887,1781266255000,-151.0,0.00019533,2]
[424909883,1781266255000,-1910.18787185,0.00019533,2]
[424909888,1781266255000,-1980.8648231,0.00019533,2]
[424909884,1781266255000,-181.30250255,0.00019533,2]
[424909891,1781266255000,-500.0,0.00019533,2]
[424909873,1781266255000,-5390.88647481,0.000149,2]
[424909874,1781266255000,-6319.20000009,0.000149,2]
[424909872,1781266255000,-6586.47886834,0.00014784,2]
[424909876,1781266255000,-32038.84832282,0.000149,2]
[424909878,1781266255000,-239.784227,0.00015067,2]
[424909871,1781266255000,-690.00113166,0.00014784,2]
[424909880,1781266255000,-500.0,0.00019533,2]
[424909879,1781266255000,-895.5041765,0.00019533,2]
[424909877,1781266255000,-914.92296007,0.000149,2]
[424909882,1781266255000,-151.0,0.00019533,2]
[424909881,1781266255000,-151.0,0.00019533,2]
[424909945,1781266256000,-4598.453817,0.0002,2]
[424909937,1781266256000,-1315.24102192,0.0002,2]
[424909935,1781266256000,-3950.0,0.0002,2]
[424909930,1781266256000,-542.75050623,0.00019973,2]
[424909927,1781266256000,-1537.08,0.00019968,2]
[424909933,1781266256000,-25993.9783865,0.0002,2]
[424909931,1781266256000,-151.0,0.00019973,2]
[424909929,1781266256000,-15810.07,0.00019968,2]
[424909926,1781266256000,-990.01,0.00019968,2]
[424909936,1781266256000,-26850.38661891,0.0002,2]
[424909932,1781266256000,-5293.50833969,0.0002,2]
[424909939,1781266256000,-1061.66089765,0.0002,2]
[424909957,1781266256000,-395.0,0.0002,2]
[424909944,1781266256000,-599.0,0.0002,2]
[424909942,1781266256000,-13130.21162899,0.0002,2]
[424909940,1781266256000,-52477.33148969,0.0002,2]
[424909943,1781266256000,-152.0,0.0002,2]
[424909938,1781266256000,-200.0,0.0002,2]
[424909941,1781266256000,-8000.0,0.0002,2]
[424909946,1781266256000,-1752.19439002,0.0002,2]
[424909947,1781266256000,-583.54,0.0002,2]
[424909949,1781266256000,-1558.02632349,0.0002,2]
[424909948,1781266256000,-400.0,0.0002,2]
[424909953,1781266256000,-359.0,0.0002,2]
[424909928,1781266256000,-475.42,0.00019968,2]
[424909950,1781266256000,-179.27944022,0.0002,2]
[424909934,1781266256000,-3994.06743211,0.0002,2]
[424909924,1781266256000,-151.0,0.00019918,2]
[424909909,1781266256000,-542.75050623,0.00019698,2]
[424909920,1781266256000,-189.290455,0.00019877,7]
[424909902,1781266256000,-542.75050623,0.00019588,2]
[424909899,1781266256000,-5542.0,0.00019567,5]
[424909898,1781266256000,-500.0,0.00019562,2]
[424909901,1781266256000,-5033.33235594,0.00019588,2]
[424909900,1781266256000,-5520.0,0.00019567,5]
[424909897,1781266256000,-661.735998,0.00019543,7]
[424909904,1781266256000,-5219.56565311,0.00019643,2]
[424909907,1781266256000,-500.0,0.00019644,2]
[424909905,1781266256000,-542.75050623,0.00019643,2]
[424909906,1781266256000,-151.0,0.00019643,2]
[424909911,1781266256000,-9935.98567777,0.000197,2]
[424909910,1781266256000,-151.0,0.00019698,2]
[424909925,1781266256000,-509.13,0.0001995,2]
[424909912,1781266256000,-1298.69930542,0.000197,2]
[424909903,1781266256000,-151.0,0.00019588,2]
[424909913,1781266256000,-1303.02635457,0.00019753,2]
[424909952,1781266256000,-232.0,0.0002,2]
[424909915,1781266256000,-151.0,0.00019753,2]
[424909914,1781266256000,-542.75050623,0.00019753,2]
[424909917,1781266256000,-151.0,0.00019808,2]
[424909916,1781266256000,-542.75050623,0.00019808,2]
[424909919,1781266256000,-151.0,0.00019863,2]
[424909918,1781266256000,-542.75050623,0.00019863,2]
[424909923,1781266256000,-542.75050623,0.00019918,2]
[424909922,1781266256000,-504.0,0.00019908,3]
[424909921,1781266256000,-1564.17780552,0.000199,2]
[424909908,1781266256000,-5412.68958227,0.00019698,2]
[424909954,1781266256000,-200.0,0.0002,10]
[424909996,1781266256000,-150.0,0.0002058,2]
[424909951,1781266256000,-1333.0,0.0002,2]
[424909994,1781266256000,-150.0,0.0002058,2]
[424909983,1781266256000,-382.0,0.0002009,2]
[424909988,1781266256000,-1566.8,0.00020381,2]
[424909993,1781266256000,-150.0,0.0002058,2]
[424909992,1781266256000,-21896.56,0.00020548,2]
[424909990,1781266256000,-1700.0,0.000204,10]
[424909991,1781266256000,-500.0,0.00020466,2]
[424909989,1781266256000,-1752.19439002,0.000204,2]
[424909987,1781266256000,-150.00000007,0.00020329,2]
[424909998,1781266256000,-150.0,0.0002058,2]
[424909999,1781266256000,-150.0,0.0002058,2]
[424909997,1781266256000,-150.0,0.0002058,2]
[424909985,1781266256000,-2072.0,0.00020136,2]
[424910007,1781266256000,-150.0,0.00020589,2]
[424910009,1781266256000,-150.0,0.00020589,2]
[424910001,1781266256000,-150.0,0.00020589,2]
[424910008,1781266256000,-150.0,0.00020589,2]
[424910005,1781266256000,-150.0,0.00020589,2]
[424910002,1781266256000,-150.0,0.00020589,2]
[424910003,1781266256000,-150.0,0.00020589,2]
[424910006,1781266256000,-150.0,0.00020589,2]
[424910011,1781266256000,-1358.0,0.00020589,2]
[424910010,1781266256000,-150.0,0.00020589,2]
[424910013,1781266256000,-1752.19439002,0.000206,2]
[424910012,1781266256000,-3556.0,0.00020589,2]
[424909956,1781266256000,-312.0,0.0002,2]
[424910004,1781266256000,-150.0,0.00020589,2]
[424909986,1781266256000,-1752.19439002,0.000202,2]
[424910000,1781266256000,-150.0,0.0002058,2]
[424909984,1781266256000,-300.0,0.000201,10]
[424909955,1781266256000,-490.0,0.0002,2]
[424909995,1781266256000,-150.0,0.0002058,2]
[424909969,1781266256000,-217.15233878,0.00020081,2]
[424909959,1781266256000,-1211.0,0.0002,2]
[424909970,1781266256000,-172.19907055,0.00020081,2]
[424909960,1781266256000,-215.0,0.0002,2]
[424909965,1781266256000,-151.0,0.00020028,2]
[424909962,1781266256000,-210.0,0.0002,2]
[424909958,1781266256000,-700.0,0.0002,2]
[424909961,1781266256000,-2809.0,0.0002,2]
[424909963,1781266256000,-1247.96,0.0002,2]
[424909968,1781266256000,-200.0,0.00020081,2]
[424909966,1781266256000,-1275.0,0.00020044,2]
[424909964,1781266256000,-542.75050623,0.00020028,2]
[424909971,1781266256000,-181.08010149,0.00020081,2]
[424909978,1781266256000,-217.15233878,0.00020081,2]
[424909967,1781266256000,-418.9195024,0.00020081,2]
[424909975,1781266256000,-151.0,0.00020081,2]